Cogmind - Beta 11.1 @@@ ROGUE MODE // 2022.12.11 @ 18:58:22 Player: Vire Result: Destroyed by Y-45 Defender with Beam Rifle Performance ------------- Evolutions (1) 500 Regions Visited (2) 400 Robots Destroyed (52) 260 Value Destroyed (1147) 1147 Prototype IDs (2) 40 Alien Tech Used (0) 0 Bonus (145) 145 TOTAL SCORE: 2492 Bonus ------- High Alert Combat Kills 145 Cogmind --------- Core Integrity 0/400 Matter 242/300 Energy 91/100 System Corruption 3% Temperature Cool (11) Movement Walking (120) Location -9/Materials Parts ------- > --- POWER (1) -------- (None) > --- PROPULSION (3) --- Aluminum Leg Aluminum Leg Aluminum Leg > --- UTILITY (3) ------ Large Storage Unit > --- WEAPON (2) ------- Small Laser Light Assault Rifle > --- INVENTORY (15) --- Aluminum Leg Aluminum Leg Aluminum Leg Aluminum Leg VTOL Module VTOL Module Improved Heat Sink Medium Storage Unit Sensor Array Improved Terrain Scanner Improved Targeting Computer Light Assault Rifle Mini Grenade Launcher Mini Grenade Launcher Heavy Hammer Peak State ------------ > --- POWER ------------ Cooled Ion Engine > --- PROPULSION ------- Aluminum Leg Improved Aluminum Leg Improved Aluminum Leg > --- UTILITY ---------- Large Storage Unit Sensor Array Signal Interpreter > --- WEAPON ----------- EM Pulse Gun Heavy Assault Rifle > --- INVENTORY -------- Aluminum Leg Aluminum Leg Aluminum Leg VTOL Module VTOL Module Heat Sink Improved Heat Sink Medium Storage Unit Sensor Array Improved Terrain Scanner Improved Targeting Computer Rocket Launcher Mini Grenade Launcher Mini Grenade Launcher Heavy Hammer [Rating: 16] Favorites ----------- Power Light Ion Engine Engine Light Ion Engine Propulsion Aluminum Leg Leg Aluminum Leg Wheel Wheel Utility Large Storage Unit Device Improved Terrain Scanner Storage Large Storage Unit Processor Signal Interpreter Protection Light Armor Plating Weapon Light Assault Rifle Energy Gun EM Pulse Gun Ballistic Gun Light Assault Rifle Launcher Rocket Launcher Impact Weapon Heavy Hammer Build | -11 -10 -9 ------- Run | Scr Mat Mat Slots Evolved 2 | . . 2 Power . | . . . Propulsion 1 | . . 1 Utility 1 | . . 1 Weapon . | . . . Parts Attached 55 | 9 7 39 Power 7 | 1 1 5 Engine 7 | 1 1 5 Core . | . . . Reactor . | . . . Propulsion 18 | 3 2 13 Treads . | . . . Leg 17 | 2 2 13 Wheel 1 | 1 . . Hover . | . . . Flight . | . . . Utility 8 | 2 3 3 Device 2 | 1 . 1 Storage 4 | 1 3 . Processor 1 | . . 1 Hackware . | . . . Protection 1 | . . 1 Artifact . | . . . Weapon 22 | 3 1 18 Energy Gun 4 | 1 . 3 Energy Cannon . | . . . Ballistic Gun 11 | 2 1 8 Ballistic Cannon . | . . . Launcher 6 | . . 6 Special Weapon . | . . . Impact Weapon 1 | . . 1 Slashing Weapon . | . . . Piercing Weapon . | . . . Special Melee Weapon . | . . . Unidentified Prototypes 2 | . . 2 Parts Lost 15 | . 2 13 Power 3 | . 1 2 Propulsion 5 | . . 5 Utility 2 | . . 2 Weapon 5 | . 1 4 Highest Loss Streak 6 | . 1 6 To Critical Strikes . | . . . Average Slot Usage (%) 95 | . 99 90 Engine 11 | . 13 9 Leg 27 | . 28 27 Device 12 | . 14 10 Storage 12 | . 14 11 Processor 3 | . . 9 Energy Gun 1 | . . 2 Ballistic Gun 22 | . 27 15 Launcher 1 | . . 3 Naked Turns . | . . . Heaviest Build 49 | 14 49 36 Greatest Support 36 | 20 20 36 Greatest Overweight (x) 7 | 3 2 7 Average Overweight (x) . | . . . Largest Inventory Capacity 20 | 8 20 15 Average Capacity 13 | 7 12 15 Most Carried 15 | 4 14 15 Average Carried 10 | 2 9 13 Final Capacity 15 | 8 15 15 Final Carried 15 | 4 13 15 Class Distribution -------------------- 98% | Mutant Dominant Class ---------------- Mutant | -10/Materials Mutant | -9/Materials Resources | -11 -10 -9 ----------- Run | Scr Mat Mat Matter Collected 1157 | 158 272 727 Remotely . | . . . Salvage Created 1506 | 85 350 1071 Parts 123 | 7 38 78 Haulers Intercepted 3 | . 1 2 Recyclers Shooed 4 | . 2 2 Parts Field Recycled . | . . . Retrieved Matter . | . . . Parts Self-Destructed . | . . . Prevented . | . . . Kills | -11 -10 -9 ------- Run | Scr Mat Mat Combat Hostiles Destroyed 35 | . 11 24 Guns 24 | . 11 13 AOE 11 | . . 11 Classes Destroyed 12 | 2 4 6 Worker 3 | . . 3 Builder 4 | . . 4 Tunneler 1 | 1 . . Hauler 3 | . 1 2 Recycler 3 | 1 . 2 Mechanic 1 | . . 1 Watcher 2 | . 1 1 Swarmer 12 | . 6 6 Grunt 16 | . 5 11 Brawler 1 | . . 1 Duelist 1 | . . 1 Sentry 5 | . . 5 Best Kill Streak 10 | 1 3 10 Combat Bots Only 5 | . 3 5 Max Kills in Single Turn 4 | 1 1 4 Gunslinging . | . . . Exploded 3 | . . 3 Melee . | . . . Uniques/NPCs Destroyed . | . . . Combat | -11 -10 -9 -------- Run | Scr Mat Mat Damage Taken 2244 | . 521 1723 Core 581 | . 169 412 Absorbed by Shields . | . . . Core Remaining (%) 66 | 100 32 . Volleys Fired 153 | 6 43 104 Largest 2 | 2 2 2 Hottest 73 | 40 40 73 Shots Fired 269 | 12 86 171 Gun 254 | 12 86 156 Cannon . | . . . Launcher 15 | . . 15 Special . | . . . Kinetic 231 | 12 86 133 Thermal 6 | . . 6 Explosive 15 | . . 15 Electromagnetic 17 | . . 17 Robot Hit Streak 13 | 5 11 13 Robot Miss Streak 4 | 3 4 3 Penetration Max . | . . . Secondary Targets 2 | . 2 . Max Gunslinging Chain 1 | . 1 . Shots Hit Robots 160 | 6 50 104 Core Hits 93 | 4 25 64 Critical Kills . | . . . Critical Parts Destroyed . | . . . Critical Strikes . | . . . Melee Attacks 1 | . . 1 Impact 1 | . . 1 Slashing . | . . . Piercing . | . . . Sneak Attacks . | . . . Combat Hostiles . | . . . Follow-up Attacks . | . . . Damage Inflicted 3188 | 75 540 2573 Guns 1586 | 74 514 998 Cannons . | . . . Explosions 1542 | . . 1542 Melee . | . . . Ramming 60 | 1 26 33 Kinetic 1450 | 74 514 862 Thermal 68 | . . 68 Explosive 1506 | . . 1506 Electromagnetic 104 | . . 104 Impact . | . . . Slashing . | . . . Piercing . | . . . Highest Corruption 3 | . 1 3 Average Corruption 1 | . 1 2 Corruption Purged . | . . . Corruption Blocked . | . . . Effects 15 | . 7 8 Message Errors 6 | . 3 3 Matter Fused 3 | . 2 1 Heat Flow Errors 1 | . . 1 Energy Discharges 1 | . 1 . Parts Rejected 1 | . . 1 Data Loss (minor) 1 | . 1 . Weapon Failures 2 | . . 2 Overload Shots . | . . . Overflow Damage 63 | . . 63 Projectiles . | . . . Explosions 63 | . . 63 Melee . | . . . Knockbacks . | . . . Impact . | . . . Kinetic . | . . . Secondary . | . . . Self-Inflicted Damage 185 | . . 185 Shots 5 | . . 5 Rammed . | . . . Targets Rammed 13 | 1 7 5 Kicked 13 | 1 7 5 Crushed . | . . . Highest Temperature 189 | . 12 189 Average Temperature 15 | . 8 17 Received Heat Transfer 615 | . 114 501 Siege Activations . | . . . Robots Corrupted . | . . . Combat Hostiles . | . . . Parts Fried . | . . . Impact Corruptions . | . . . Robots Melted . | . . . Combat Hostiles . | . . . Parts Melted . | . . . Heat Transferred 150 | . . 150 Parts Sabotaged . | . . . Parts Stolen . | . . . Parts Stripped . | . . . Power Chain Reactions . | . . . Missiles Intercepted . | . . . Alert | -11 -10 -9 ------- Run | Scr Mat Mat Peak Influence 889 | 10 141 889 Initial 6 | . 6 . Average 146 | 3 45 308 Maximum Alert Level 3 | . . 3 Low Security (%) 80 | 100 100 49 Level 1 5 | . . 14 Level 2 6 | . . 16 Level 3 7 | . . 19 Level 4 . | . . . Level 5 . | . . . High Security . | . . . Max Security . | . . . Squads Dispatched 3 | . 1 2 Investigation . | . . . Extermination . | . . . Reinforcement 3 | . 1 2 Assault . | . . . Garrison . | . . . Intercept . | . . . Searches Triggered . | . . . Construction Impeded 1 | . . 1 Haulers Reinforced . | . . . Active Scanning Responses . | . . . Cargo Convoy Interrupts . | . . . Stealth | -11 -10 -9 --------- Run | Scr Mat Mat Distress Signals 4 | . 1 3 Communications Jammed . | . . . Distress Signals . | . . . Times Spotted 50 | . 19 31 Peak Tracking Total 5 | . 5 5 Tactical Retreats 1 | . . 1 Traps | -11 -10 -9 ------- Run | Scr Mat Mat Traps Triggered 3 | . 1 2 Indirectly . | . . . Trap Hack Attempts . | . . . Triggered . | . . . Disarmed . | . . . Reprogrammed . | . . . Reused . | . . . Traps Extracted . | . . . Installed . | . . . Triggered . | . . . Machines | -11 -10 -9 ---------- Run | Scr Mat Mat Machines Disabled 5 | . . 5 Max in Single Turn 1 | . . 1 Machines Sabotaged . | . . . Garrisons Compromised . | . . . Overloaded Fab Kills . | . . . Hacking | -11 -10 -9 --------- Run | Scr Mat Mat Machines Accessed 11 | . 7 4 Terminals 10 | . 7 3 Fabricators . | . . . Repair Stations . | . . . Recycling Units . | . . . Scanalyzers 1 | . . 1 Garrison Access . | . . . Total Hacks 31 | . 17 14 Successful 19 | . 9 10 Failed 12 | . 8 4 Catastrophic 1 | . . 1 Database Lockouts . | . . . Manual 24 | . 14 10 Terminals 27 | . 17 10 Fabricators . | . . . Repair Stations . | . . . Recycling Units . | . . . Scanalyzers 4 | . . 4 Garrison Access . | . . . Terminal Hacks 4 | . 2 2 Branch Access Points 1 | . 1 . Terminal Index 2 | . 1 1 Recall Reinforcements 1 | . . 1 Fabricator Hacks . | . . . Repair Station Hacks . | . . . Recycling Unit Hacks . | . . . Scanalyzer 4 | . . 4 Insert Component 2 | . . 2 Analyze 2 | . . 2 Garrison Access Hacks . | . . . Unauthorized Hacks 11 | . 7 4 Terminals 11 | . 7 4 Track 3 | . 3 . Botnet 7 | . 4 3 Operators 1 | . . 1 Fabricators . | . . . Repair Stations . | . . . Recycling Units . | . . . Scanalyzers . | . . . Garrison Access . | . . . Data Cores Recovered . | . . . Used . | . . . Hacking Detections 9 | . 5 4 Full Trace Events 1 | . 1 . Feedback Events . | . . . Feedback Blocked . | . . . Robot Schematics Acquired . | . . . Robots Built . | . . . Authchips . | . . . Time . | . . . Total Robot Build Rating . | . . . Part Schematics Acquired 2 | . . 2 Parts Built . | . . . Authchips . | . . . Time . | . . . Total Part Build Rating . | . . . Parts Repaired . | . . . Time . | . . . Parts Recycled . | . . . Recycled Matter . | . . . Retrieved Matter . | . . . Retrieved Components . | . . . Parts Scanalyzed 2 | . . 2 Part Schematics Acquired 2 | . . 2 Parts Damaged . | . . . Bothacking | -11 -10 -9 ------------ Run | Scr Mat Mat Used RIF Installer . | . . . Robots Hacked . | . . . Non-combat . | . . . Combat . | . . . Robot Hacks Applied . | . . . Relay Couplers Released . | . . . Fabnet Peak Effective % . | . . . Robots Rewired . | . . . Allies Hacked . | . . . Hacks Repelled . | . . . Allies | -11 -10 -9 -------- Run | Scr Mat Mat Total Allies . | . . . Largest Group . | . . . Highest-Rated Group . | . . . Highest-Rated Ally . | . . . Total Orders . | . . . Ally Attacks . | . . . Total Damage . | . . . Kills . | . . . Allies Corrupted . | . . . Allies Melted . | . . . Intel | -11 -10 -9 ------- Run | Scr Mat Mat Robot Analysis Total . | . . . Derelict Logs Recovered . | . . . Drone Launches . | . . . Drone Recoveries . | . . . Exploration | -11 -10 -9 ------------- Run | Scr Mat Mat Turns Passed 2845 | 103 1640 1102 Spaces Moved 1301 | 58 832 411 Core 11 | 7 . 4 Treads . | . . . Legs 1285 | 46 832 407 Wheels 5 | 5 . . Hover . | . . . Flight . | . . . Fastest Speed 50 | 50 120 120 Average Speed 158 | 117 164 151 Slowest Speed 400 | 200 260 400 Overloaded Moves . | . . . Propulsion Burnouts . | . . . Robots Hopped . | . . . Cave-ins Triggered 2 | . . 2 Exploration Rate (%) 45 | 4 90 41 Regions Visited 2 Branch Regions . Pre-discovered Areas . | . . . Known Exits Taken . | . . . Unknown Exits Taken 2 | 1 1 . Scrap Searched . | . . . Spaces Dug . | . . . Terrain Destroyed 131 | . . 131 Melee . | . . . Projectile . | . . . AOE 131 | . . 131 Terrain Rammed . | . . . Walls Destroyed . | . . . Machines Disabled . | . . . Actions | -11 -10 -9 --------- Run | Scr Mat Mat Total 1822 | 78 1023 721 Wait 257 | . 115 142 Move 1300 | 58 831 411 Hop . | . . . Pick Up 30 | 5 13 12 Fast Attach 19 | 6 1 12 Attach 12 | 1 1 10 Detach . | . . . Swap 24 | 2 5 17 Drop 14 | . 7 7 Fire 153 | 6 43 104 Melee 1 | . . 1 Ram . | . . . Kick 12 | . 7 5 Crush . | . . . Escape Stasis . | . . . Rewire . | . . . Trap . | . . . Miscellaneous . | . . . Route ------- -11/Scrapyard -10/Materials (discovered 4 exits: *Mat x3 / Min) -9/Materials (discovered 1 exit: [*Mat]) History --------- Turn | Location | Event 30 | -11/Scrapyard | Discovered new exit (range 15) 104 | -11/Scrapyard | Entered Materials 317 | -10/Materials | Build established: Mutant 681 | -10/Materials | Identified exit to Mines 817 | -10/Materials | Discovered new exit (range 9) 972 | -10/Materials | Core integrity fell below 50% 1261 | -10/Materials | Discovered new exit (range 9) 1627 | -10/Materials | Discovered new exit (range 15) 1744 | -10/Materials | Entered another Materials area 1744 | -9/Materials | Evolved 2 slots: Propulsion x1, Utility x1 2529 | -9/Materials | Discovered new exit (range 8) 2563 | -9/Materials | Core integrity fell below 50% 2739 | -9/Materials | Crushed by falling debris 2748 | -9/Materials | Core integrity fell below 20% 2756 | -9/Materials | Crushed by falling debris 2772 | -9/Materials | Lost 6 parts (1p3n1u1w) 2846 | -9/Materials | Destroyed by Y-45 Defender with Beam Rifle Last Messages --------------- 02817_ U-05 Engineer builds a Wall. 02817_ U-05 Engineer lays Concrete. 02817_ R-06 Scavenger collects Sml. Matter Pod. 02817_ K-01 Serf collects debris. 02818_ U-05 Engineer lays Concrete. 02821_ U-05 Engineer builds a Wall. 02821_ K-01 Serf collects debris. 02821_ U-05 Engineer builds a Wall. 02821_ R-06 Scavenger collects Lgt. Ion Engine. 02825_ U-05 Engineer builds a Wall. 02829_ U-05 Engineer builds a Door. 02829_ R-06 Scavenger collects Sml. Laser. 02833_ U-05 Engineer lays Concrete. 02833_ R-06 Scavenger collects Welding Torch. 02834_ U-05 Engineer lays Concrete. 02837_ R-06 Scavenger collects Terrain Scan Processor. 02839_ System corrupted: Sml. Laser failed to cycle. 02840_ R-06 Scavenger collects Sml. Matter Pod. 02843_ OLVQBDQZB#/ #C:V9KHFO0 02843_ Lgt. Armor Plating destroyed. Map ----- +----------------------------------------------------+ | ??????????????????????????????????????????????? | | ??????????????????????????????????????????????? | | ??????????????????????????????????????????????? | | ??????????????????????????????????????????????? | | ??????????????????????????????????????????????? | | ??????????????????????????????????????????????? | | ??????????????????????????????????????????????? | | ??????????????????????????????????????????????? | | ??????????????????????????????????????????????? | | ??????????????????????????????????????????????? | | ??????????????????????????????????????????????? | | ??????????????????????????????????????????????? | | ??????????????????????????????????????????????? | | ??????????????????????????????????????????????? | | ???????????????????#####??????????????????????? | | ??????????????????? """??????????????????????? | | ???????????????????? ""T?????????? ???????????? | | ???????????????????? ????????? ??????????? | | ???????????????????? ???????? ?????????? | | ????????????????????? ??????? ?????????? | | ????????????????????? ?????? r ?????????? | | ?????????????????????#Y#?????! "????????? | | ????????????????????## #####! "????????? | | ????????????????????# /== "???????? | | ????????????????????+ === ???????? | | ????????????????????# @ === ???????? | | ????????????????????# #####+##??????????????? | | ????????????????????# #???? ????????????????? | | ????????????????????# #??? ????????????????? | | ????????????????????# #?? """???????????????? | | ???????????????##???# #?? """???????????????? | | ??????????###### #### ## "?????????????????? | | ?????????# ##! ??????????????????? | | ?????????# """ """ # ########### ?????????? | | ?????????# """ R" # ????????? | | ?????????# """ """ + ????????? | | ?????????# #% ????????? | | ?????????# # r ###### ###?????????? | | ?????????# !## #######?? #???????????? | | ?????????# # #! #???????????????? | | ???????########### # # #???????????????? | | ???????# =#!! + #???????????????? | | ???????# """" """ #% # #???????????????? | | ???????# """" """ + + #???????????????? | | ???????# """" """ # %# #???????????????? | | ?####### # # # ????????????? | | ?# # #######+###### ###/### #???????????? | | ##""""""" ##?# #???## # # #???????????? | | # " #? #???## # # #???????????? | | # " #?###????# # + +???????????? | +----------------------------------------------------+ Best States ------------- Heat Dissipation 28 Energy Generation 14 Energy Capacity 280 Matter Stores 290 Matter Capacity 300 Sight Range 16 Robot Scan Range 14 Terrain Scan Range 16 Terrain Scan Density 10 Armor Coverage 150 Evasion (%) 55 Item Schematics ----------------- Imp. Heat Sink | -9/Materials | Scanalyzed Sensor Array | -9/Materials | Scanalyzed Robot Schematics ------------------ None Fabricated ------------ Nothing Alien Tech Used ----------------- None Achievements -------------- None Challenges ------------ None Game ------ Seed WeldingSlugNeutralizer Manual? 0 Play Time 00:28:04 Cumulative 20.4 hours Start 2022.12.11 @ 17:31:55 End 2022.12.11 @ 18:58:22 Sessions 1 Manual Loads 0 Difficulty Rogue Special Mode None Game No. 29 Rogue 29 Adventurer 0 Explorer 0 Win Type - Total 0 Types 0/0/0/0/0/0/0/0/0 Lore% 16 Gallery% 21 Achievement% 17 Wizard Run 0 Options --------- ASCII 0 Keyboard 0 Movement Vi Keybinds 0 Fullscreen 1 Font 24/Smallcaps Map View 76x50 Tactical HUD 1 Map Filters NONE Filters NONE Steam 1 RUN: e6f34e67-8822-44a3-ab57-5e9dc4ae82c1